bitfinex/quotes_SOLUSD_20250217
["timestamp","ask_amount","ask_price","bid_price","bid_amount"]
[1739769699401,32.51370705,181.73,181.68,42.25259497]
[1739769699601,32.51370705,181.73,181.7,42.25259497]
[1739769699822,32.51370705,181.73,181.72,42.25259497]
[1739769700322,7.05e-06,181.73,181.72,42.25259497]
[1739769700501,7.05e-06,181.73,181.72,47.75549497]
[1739769701123,7.05e-06,181.73,181.72,42.25259497]
[1739769701325,7.05e-06,181.73,181.61,5.5063]
[1739769701533,7.05e-06,181.73,181.61,6.5063]
[1739769702038,7.05e-06,181.73,181.61,5.5063]
[1739769702240,7.05e-06,181.73,181.61,19.272]
[1739769702441,7.05e-06,181.73,181.64,20.0]
[1739769702610,42.25259497,181.71,181.64,62.25259497]
[1739769703418,7.05e-06,181.73,181.68,42.25259497]
[1739769703732,7.05e-06,181.73,181.69,42.25259497]
[1739769704117,42.25259497,181.71,181.64,42.25259497]
[1739769704328,42.25259497,181.7,181.65,5.505]
[1739769704525,42.25259497,181.71,181.65,5.505]
[1739769704920,42.25259497,181.67,181.6,42.28259497]
[1739769705122,42.25259497,181.69,181.62,42.25259497]
[1739769705326,7.05e-06,181.73,181.69,20.0]
[1739769705836,7.05e-06,181.73,181.61,19.2717]
[1739769705837,7.05e-06,181.73,181.64,20.0]
[1739769706427,42.25259497,181.71,181.65,5.505]
[1739769706621,42.25259497,181.7,181.65,5.505]
[1739769706928,42.25259497,181.68,181.63,5.5054]
[1739769707739,42.25259497,181.69,181.63,5.5054]
[1739769708221,1.03227054,181.73,181.65,42.25259497]
[1739769708424,7.05e-06,181.73,181.67,42.25259497]
[1739769708723,7.05e-06,181.73,181.71,42.25259497]
[1739769708921,7.05e-06,181.73,181.72,42.25259497]
[1739769709840,42.25260202,181.73,181.66,42.25259497]
[1739769710222,42.25259497,181.71,181.64,42.25259497]
[1739769710419,42.25259497,181.71,181.64,47.75789497]
[1739769710639,42.25259497,181.68,181.64,5.5053]
[1739769711019,42.25259497,181.72,181.66,42.25259497]
[1739769711223,7.05e-06,181.73,181.68,42.25259497]
[1739769711543,7.05e-06,181.73,181.71,42.25259497]
[1739769712323,1.03203502,181.79,181.71,47.75559497]
[1739769712648,42.25259497,181.77,181.71,5.503]
[1739769712961,1.03180242,181.85,181.76,42.25259497]
[1739769713151,42.25259497,181.84,181.78,42.25259497]
[1739769713448,1.03145971,181.83,181.77,42.25259497]
[1739769714054,42.25259497,181.84,181.77,42.25259497]
[1739769714420,42.25259497,181.84,181.78,5.5011]
[1739769714626,43.2840264,181.83,181.76,42.25259497]
[1739769714935,43.2840264,181.83,181.77,5.5013]
[1739769715331,46.36077726,181.83,181.77,5.5013]
[1739769715525,42.25259497,181.79,181.75,87.26]
[1739769715734,42.25259497,181.76,181.75,87.26]
[1739769716331,42.25259497,181.76,181.67,42.25259497]
[1739769716536,42.25259497,181.72,181.67,5.5044]
[1739769716747,42.25259497,181.73,181.67,47.75699497]
[1739769717149,42.25259497,181.73,181.67,5.5044]
[1739769717458,42.25259497,181.72,181.66,42.25259497]
[1739769717658,1.0319571,181.79,181.71,42.25259497]
[1739769717967,3.89805909,181.72,181.68,20.0]
[1739769718139,5.909e-05,181.72,181.68,20.0]
[1739769718657,5.909e-05,181.73,181.72,20.0]
[1739769719159,5.909e-05,181.73,181.72,62.25259497]
[1739769720763,5.909e-05,181.73,181.72,67.75549497]
[1739769720971,5.909e-05,181.73,181.72,154.99549497]
[1739769721648,5.909e-05,181.73,181.72,92.7429]
[1739769721854,5.909e-05,181.73,181.72,87.24]
[1739769722945,5.909e-05,181.73,181.72,134.99549497]
[1739769725265,5.909e-05,181.73,181.72,92.7429]
[1739769725485,5.909e-05,181.73,181.72,134.99549497]
[1739769725896,5.909e-05,181.73,181.72,47.75549497]
[1739769726474,5.909e-05,181.73,181.72,48.75549497]
[1739769727203,1.37663073,181.81,181.72,48.75549497]
[1739769727204,1.37663073,181.81,181.75,20.0]
[1739769727384,1.37663073,181.81,181.8,42.25259497]
[1739769728378,1.37663073,181.87,181.8,42.25259497]
[1739769728706,1.37663073,181.87,181.82,47.75239497]
[1739769729282,1.37663073,181.87,181.83,42.25259497]
[1739769730081,42.31559497,181.89,181.83,42.25259497]
[1739769730713,0.063,181.89,181.87,42.25259497]
[1739769731503,0.063,181.89,181.86,42.25259497]
[1739769731688,0.063,181.89,181.85,42.25259497]
[1739769731894,0.063,181.89,181.83,87.22]
[1739769731895,0.063,181.89,181.86,42.25259497]
[1739769732613,0.063,181.89,181.84,42.25259497]
[1739769732915,42.31559497,181.89,181.84,5.4991]
[1739769733699,0.063,181.89,181.84,47.75169497]
[1739769733915,0.063,181.89,181.85,42.25259497]
[1739769735394,0.063,181.89,181.87,42.25259497]
[1739769735915,0.063,181.89,181.87,5.4984]
[1739769736697,0.063,181.89,181.88,42.25259497]
[1739769737197,0.063,181.89,181.88,84.50518994]
[1739769737407,42.25259497,181.99,181.88,84.50518994]
[1739769737591,0.063,182.0,181.95,42.25259497]
[1739769738414,42.25259497,181.96,181.9,5.4975]
[1739769738589,42.25259497,181.95,181.9,5.4975]
[1739769738985,1.09355377,182.0,181.83,87.22]
[1739769738986,42.25259497,181.91,181.83,87.22]
[1739769739187,20.0,182.0,181.89,1.0]
[1739769739397,42.25259497,181.9,181.89,1.0]
[1739769739593,0.61279403,181.97,181.9,1.0]
[1739769739801,0.61279403,181.97,181.92,1.0]
[1739769740023,20.0,182.02,181.95,1.0]
[1739769740216,9.03279403,182.01,181.96,1.0]
[1739769740412,6.10699403,182.01,181.95,1.0]
[1739769740626,6.10699403,182.01,181.9,1.0]
[1739769740627,19.84249403,182.01,181.9,1.0]
[1739769740832,19.84249403,182.01,181.89,1.0]
[1739769741134,42.25259497,181.9,181.89,1.0]
[1739769741338,42.25259497,181.91,181.89,1.0]
[1739769741526,42.25259497,181.9,181.89,1.0]
[1739769742835,42.25259497,181.9,181.88,1.0]
[1739769743038,5.4972,181.92,181.89,1.0]
[1739769744198,0.61279403,181.95,181.89,1.0]
[1739769744398,42.25259497,181.9,181.89,1.0]
[1739769746551,42.25259497,181.93,181.91,1.0]
[1739769746909,42.25259497,181.92,181.91,1.0]
[1739769747104,42.25259497,181.92,181.87,87.21]
[1739769747105,42.25259497,181.92,181.89,1.0]
[1739769747312,42.25259497,181.9,181.88,1.0]
[1739769747520,42.25259497,181.89,181.88,1.0]
[1739769748352,42.25259497,181.89,181.87,88.21]
[1739769748506,42.25259497,181.88,181.87,87.21]
[1739769748841,42.25259497,181.88,181.87,0.03]
[1739769750736,47.75069497,181.88,181.87,0.03]
[1739769751143,42.25259497,181.88,181.87,1.03]
[1739769751335,42.25259497,181.92,181.89,1.0]
[1739769751657,0.61279403,181.94,181.9,1.0]
[1739769752039,6.10879403,181.95,181.91,1.0]
[1739769752437,6.17149403,181.96,181.92,1.0]
[1739769752741,6.17149403,181.96,181.91,1.0]
[1739769752933,6.17149403,181.96,181.9,1.0]
[1739769753128,42.25259497,181.91,181.9,1.0]
[1739769753456,42.25259497,181.92,181.91,1.0]
[1739769754063,0.063,181.96,181.95,1.0]
[1739769754237,0.063,181.96,181.95,43.25259497]
[1739769754457,0.063,181.96,181.95,48.74859497]
[1739769756157,0.063,181.96,181.95,6.496]
[1739769756669,0.063,181.96,181.95,1.0]
[1739769757062,0.063,181.96,181.95,43.25259497]
[1739769758471,42.25259497,182.04,182.03,1.0]
[1739769758669,42.86219497,182.05,182.04,1.0]
[1739769759042,0.6096,182.05,182.04,1.0]
[1739769759471,0.6096,182.05,182.04,43.25259497]
[1739769759771,0.6096,182.05,182.04,1.0]
[1739769760472,0.6096,182.05,182.04,6.4932]
[1739769761372,42.86219497,182.05,182.02,1.0]
[1739769761574,42.25259497,182.03,182.0,1.0]
[1739769761753,42.25259497,182.03,181.96,1.0]
[1739769761754,0.61279403,182.03,181.96,1.0]
[1739769761957,13.41184853,182.02,181.93,1.0]
[1739769762266,20.0,182.0,181.91,88.18]
[1739769762577,5.4951,181.98,181.92,1.0]
[1739769762743,0.61279403,181.97,181.93,1.0]
[1739769762945,42.25259497,181.94,181.93,1.0]
[1739769763172,42.25259497,181.94,181.92,1.0]
[1739769763365,0.61279403,181.97,181.93,1.0]
[1739769763870,42.865389,181.98,181.94,1.0]
[1739769764644,48.360489,181.98,181.94,1.0]
[1739769764849,42.25259497,181.95,181.93,1.0]
[1739769765045,42.25259497,181.94,181.93,1.0]
[1739769766267,42.865389,181.94,181.9,1.0]
[1739769766464,42.25259497,181.91,181.88,1.0]
[1739769766673,42.25259497,181.89,181.88,1.0]
[1739769766881,42.25259497,181.89,181.87,0.03]
[1739769766882,90.00308994,181.89,181.87,0.03]
[1739769767186,13.42529403,181.88,181.82,1.0]
[1739769767357,42.25259497,181.83,181.82,1.0]
[1739769767679,84.50518994,181.83,181.77,1.0]
[1739769767887,42.25259497,181.78,181.77,1.0]
[1739769768549,42.25259497,181.85,181.84,1.0]
[1739769768749,42.25259497,181.86,181.85,1.0]
[1739769769052,0.61279403,181.94,181.91,1.0]
[1739769769258,12.8125,181.95,181.91,1.0]
[1739769769558,18.3085,181.95,181.91,1.0]
[1739769770260,42.25259497,181.92,181.91,1.0]
[1739769772256,42.25259497,181.94,181.93,1.0]
[1739769773480,42.25259497,181.96,181.95,1.0]
[1739769774991,47.74829497,181.96,181.92,1.0]
[1739769775288,42.25259497,181.98,181.92,1.0]
[1739769775289,42.25259497,181.93,181.92,1.0]
[1739769775493,42.25259497,181.94,181.93,1.0]
[1739769775659,42.25259497,181.98,181.97,1.0]
[1739769776057,42.25259497,181.99,181.98,1.0]
[1739769776982,42.25259497,182.0,181.99,1.0]
[1739769778688,0.063,182.0,181.99,1.0]
[1739769778889,42.31559497,182.0,181.99,1.0]
[1739769780087,47.81009497,182.0,181.94,1.0]
[1739769780290,42.25259497,181.95,181.92,1.0]
[1739769780469,42.25259497,181.93,181.92,1.0]
[1739769781384,42.25259497,181.97,181.96,1.0]
[1739769781584,42.25259497,181.98,181.97,1.0]
[1739769782566,0.063,182.0,181.99,1.0]
[1739769782987,0.063,182.0,181.99,48.74739497]
[1739769783190,0.063,182.0,181.99,6.4948]
[1739769784391,0.063,182.0,181.99,1.0]
[1739769784693,42.31559497,182.0,181.98,1.0]
[1739769784887,0.063,182.0,181.99,1.0]
[1739769785072,0.063,182.0,181.95,1.0]
[1739769785455,0.063,182.0,181.97,1.0]
[1739769785660,0.063,182.0,181.99,1.0]
[1739769785882,0.063,182.0,181.96,1.0]
[1739769786090,0.063,182.0,181.87,87.19]
[1739769786091,0.063,182.0,181.95,1.0]
[1739769786297,0.063,182.0,181.87,87.19]
[1739769786298,0.063,182.0,181.96,1.0]
[1739769786793,42.25259497,181.97,181.94,1.0]
[1739769786998,42.25259497,181.95,181.94,1.0]
[1739769787503,42.25259497,181.96,181.94,1.0]
[1739769787679,42.25259497,181.95,181.94,1.0]
[1739769788502,42.25259497,181.95,181.89,1.0]
[1739769788804,42.25259497,181.9,181.87,87.19]
[1739769789101,5.4966,181.93,181.88,1.0]
[1739769789271,5.4966,181.93,181.89,1.0]
[1739769789467,42.25259497,181.9,181.89,1.0]
[1739769791209,42.25259497,181.9,181.87,87.19]
[1739769791210,47.75009497,181.9,181.87,87.19]
[1739769791508,0.063,181.95,181.94,1.0]
[1739769792502,42.31559497,181.95,181.92,1.0]
[1739769792710,42.25259497,181.93,181.92,1.0]
[1739769793004,42.25259497,181.93,181.9,1.0]
[1739769793181,42.25259497,181.91,181.9,1.0]
[1739769794089,5.559,181.95,181.91,1.0]
[1739769794285,42.25259497,181.92,181.91,1.0]
[1739769795093,42.25259497,181.93,181.91,1.0]
[1739769795285,42.31559497,181.95,181.93,1.0]
[1739769795491,0.063,181.95,181.93,1.0]
[1739769795814,42.31559497,181.95,181.94,1.0]
[1739769796613,0.063,181.95,181.94,1.0]
[1739769796785,0.063,181.95,181.94,43.25259497]
[1739769797198,0.063,181.95,181.94,48.74889497]
[1739769797397,0.063,182.0,181.99,1.0]
[1739769798107,0.063,182.0,181.99,43.25259497]
[1739769798607,0.063,182.0,181.99,1.0]
[1739769801032,0.063,182.0,181.99,43.25259497]
[1739769801932,0.063,182.0,181.99,1.0]
[1739769802113,42.31559497,182.0,181.99,1.0]
[1739769802711,42.31559497,182.0,181.98,1.0]
[1739769802921,42.25259497,181.99,181.98,1.0]
[1739769803320,42.31559497,182.0,181.98,1.0]
[1739769803520,42.31559497,182.0,181.93,42.28259497]
[1739769803521,0.063,182.0,181.99,1.0]
[1739769804033,42.31559497,182.0,181.99,1.0]
[1739769804533,42.31559497,182.0,181.97,1.0]
[1739769804705,42.25259497,181.98,181.97,1.0]
[1739769804907,42.25259497,181.98,181.96,1.0]
[1739769805126,42.25259497,181.97,181.96,1.0]
[1739769805938,42.25259497,181.98,181.97,1.0]
[1739769806139,0.063,182.0,181.99,1.0]
[1739769807650,0.063,182.0,181.99,6.4948]
[1739769808208,0.063,182.0,181.99,48.74739497]
[1739769810023,0.063,182.0,181.99,62.1592435]
[1739769810237,0.063,182.0,181.99,48.74739497]
[1739769810931,0.063,182.0,181.99,43.25259497]
[1739769811121,42.31559497,182.0,181.97,1.0]
[1739769811319,42.25259497,181.98,181.97,1.0]
[1739769811625,42.25259497,181.99,181.98,1.0]
[1739769811940,0.063,182.0,181.99,1.0]
[1739769812146,42.31559497,182.0,181.97,1.0]
[1739769812441,42.31559497,182.0,181.99,1.0]
[1739769812442,0.063,182.0,181.99,1.0]
[1739769812929,0.063,182.0,181.99,0.77024837]
[1739769813330,42.31559497,182.0,181.99,0.77024837]
[1739769814250,42.31559497,182.0,181.96,0.77024837]
[1739769814460,42.25259497,181.97,181.93,0.03]
[1739769814652,42.25259497,181.94,181.93,0.03]
[1739769815238,42.25259497,181.94,181.93,0.80024837]
[1739769816541,42.25259497,181.94,181.93,0.03]
[1739769817533,42.25259497,181.94,181.93,0.80024837]
[1739769818232,42.25259497,181.94,181.93,0.03]
[1739769819052,42.25259497,181.97,181.96,0.77024837]
[1739769819669,42.25259497,181.97,181.95,0.77024837]
[1739769819834,42.25259497,181.96,181.94,0.77024837]
[1739769820042,42.25259497,181.98,181.94,0.77024837]
[1739769820257,42.25259497,181.95,181.93,0.03]
[1739769820559,42.25259497,181.98,181.93,0.03]
[1739769820560,42.865389,181.94,181.93,0.03]
[1739769820862,42.25259497,181.94,181.93,0.03]
[1739769822375,47.74889497,181.94,181.93,0.03]
[1739769822736,31.65058351,181.94,181.93,0.03]
[1739769823855,26.15428351,181.94,181.93,0.03]
[1739769824043,26.15428351,181.94,181.93,0.80024837]
[1739769824365,26.15428351,181.96,181.94,0.77024837]
[1739769824563,26.15428351,181.96,181.95,0.77024837]
[1739769827267,26.15428351,181.96,181.95,0.80024837]
[1739769829159,26.15428351,181.96,181.95,0.03]
[1739769829665,32.26277754,181.96,181.95,0.03]
[1739769830168,20.0,181.94,181.93,0.03]
[1739769830369,46.76707754,181.94,181.93,0.03]
[1739769831078,52.26337754,181.94,181.88,0.77024837]
[1739769831255,26.15428351,181.89,181.88,0.77024837]
[1739769832349,52.30856702,181.89,181.87,0.03]
[1739769832549,20.0,181.81,181.74,0.03]
[1739769832771,26.15428351,181.75,181.74,0.03]
[1739769834669,20.0,181.73,181.72,0.03]
[1739769834864,14.02464256,181.73,181.72,0.03]
[1739769835189,20.0,181.71,181.64,9.35008832]
[1739769835486,42.59086698,181.65,181.64,9.35008832]
[1739769836170,42.59086698,181.65,181.64,8.57983995]
[1739769836763,42.59086698,181.65,181.62,0.77024837]
[1739769837173,42.59086698,181.63,181.62,0.77024837]
[1739769837379,6.11639403,181.7,181.64,0.77024837]
[1739769837989,6.11639403,181.7,181.63,0.77024837]
[1739769837990,19.52824256,181.7,181.63,0.77024837]
[1739769838287,13.41184853,181.69,181.62,0.77024837]
[1739769838472,0.61279403,181.68,181.63,0.77024837]
[1739769838674,5.5036,181.7,181.56,20.0]
[1739769838675,42.59086698,181.67,181.66,0.77024837]
[1739769838861,42.59086698,181.69,181.67,0.77024837]
[1739769839770,42.59086698,181.68,181.66,0.77024837]
[1739769840086,42.59086698,181.67,181.64,0.77024837]
[1739769840382,42.59086698,181.65,181.64,0.77024837]
[1739769840751,42.59086698,181.68,181.67,0.77024837]
[1739769840957,42.59086698,181.7,181.67,0.77024837]
[1739769841269,42.59086698,181.7,181.69,0.77024837]
[1739769841458,42.59086698,181.71,181.69,0.77024837]
[1739769841661,13.77229403,181.75,181.69,0.77024837]
[1739769841662,42.59086698,181.72,181.69,0.77024837]
[1739769842180,42.59086698,181.71,181.69,0.77024837]
[1739769842684,42.59086698,181.72,181.71,0.77024837]
[1739769842860,42.59086698,181.75,181.74,0.77024837]
[1739769843371,42.59086698,181.75,181.62,89.62811551]
[1739769843372,21.0,181.72,181.62,0.03]
[1739769843553,42.59086698,181.64,181.62,0.03]
[1739769843754,42.59086698,181.66,181.62,0.03]
[1739769843975,42.59086698,181.65,181.62,5.5359]
[1739769844279,43.20366101,181.71,181.62,5.5359]
[1739769844280,42.59086698,181.63,181.62,0.03]
[1739769845382,85.18173396,181.63,181.62,0.03]
[1739769845564,42.59086698,181.52,181.48,200.0]
[1739769845766,42.59086698,181.49,181.48,200.0]
[1739769846781,56.00271551,181.49,181.48,200.0]
[1739769846984,57.00271551,181.49,181.48,158.4019]
[1739769847187,0.61279403,181.51,181.48,158.4019]
[1739769847387,42.59086698,181.49,181.48,158.4019]
[1739769847772,56.00271551,181.49,181.48,158.4019]
[1739769848189,21.0,181.45,181.37,33.36218051]
[1739769848476,21.0,181.41,181.37,33.36218051]
[1739769848676,14.15,181.38,181.35,45.0]
[1739769848868,0.61279403,181.37,181.35,45.0]
[1739769849073,42.59086698,181.36,181.35,45.0]
[1739769849388,49.10466698,181.36,181.35,45.0]
[1739769849570,49.10466698,181.36,181.35,44.0]
[1739769849886,121.63016322,181.36,181.35,44.0]
[1739769850075,121.69553396,181.36,181.35,43.38720597]
[1739769850669,91.69553396,181.36,181.35,43.38720597]
[1739769850979,42.59086698,181.36,181.35,43.38720597]
[1739769851486,42.59086698,181.4,181.35,43.38720597]
[1739769851677,42.59086698,181.41,181.35,43.38720597]
[1739769852179,42.59086698,181.43,181.36,42.59086698]
[1739769852385,42.59086698,181.45,181.38,42.59086698]
[1739769852569,42.59086698,181.39,181.35,43.38720597]
[1739769852772,42.59086698,181.38,181.35,43.38720597]
[1739769853190,42.59086698,181.37,181.35,43.38720597]
[1739769853391,42.59086698,181.4,181.35,43.38720597]
[1739769853582,42.59086698,181.39,181.35,43.38720597]
[1739769853776,42.59086698,181.38,181.35,43.38720597]
[1739769853981,42.59086698,181.36,181.35,43.38720597]
[1739769854191,42.59086698,181.38,181.35,43.38720597]
[1739769854394,42.59086698,181.39,181.35,43.38720597]
[1739769854769,42.59086698,181.4,181.35,43.38720597]
[1739769855479,42.59086698,181.38,181.35,43.38720597]
[1739769855675,42.59086698,181.36,181.35,43.38720597]
[1739769856177,16.571901,181.4,181.35,43.38720597]
[1739769856178,42.59086698,181.38,181.35,43.38720597]
[1739769856377,42.59086698,181.39,181.35,43.38720597]
[1739769856773,42.59086698,181.44,181.37,42.59086698]
[1739769856969,59.15965898,181.44,181.37,42.59086698]
[1739769857279,42.59086698,181.38,181.35,43.38720597]
[1739769857470,42.59086698,181.37,181.35,43.38720597]
[1739769857669,42.59086698,181.36,181.35,43.38720597]
[1739769859377,48.10466698,181.36,181.35,43.38720597]
[1739769859577,42.59086698,181.36,181.35,43.38720597]
[1739769860695,27.31568652,181.36,181.35,43.38720597]
[1739769861292,28.31567282,181.36,181.35,5.97e-06]
[1739769861500,54.63135934,181.36,181.35,5.97e-06]
[1739769861970,53.63137304,181.36,181.35,5.97e-06]
[1739769862178,1.0,181.32,181.24,0.03784435]
[1739769862376,26.31568652,181.28,181.24,0.03784435]
[1739769862577,26.31568652,181.27,181.24,0.03784435]
[1739769862778,26.31568652,181.26,181.24,0.03784435]
[1739769863077,26.31568652,181.25,181.24,0.03784435]
[1739769863274,31.83288652,181.25,181.24,0.03784435]
[1739769863478,62.83288652,181.25,181.24,0.03784435]
[1739769863688,26.31568652,181.25,181.24,0.03784435]
[1739769863906,26.31568652,181.27,181.24,0.03784435]
[1739769864479,13.7867,181.34,181.24,0.03784435]
[1739769864480,5.5141,181.35,181.26,26.31568652]
[1739769864801,26.31568652,181.32,181.26,26.31568652]
[1739769865012,26.31568652,181.31,181.24,26.35353087]
[1739769865190,26.31568652,181.3,181.24,0.03784435]
[1739769865504,26.31568652,181.26,181.24,0.03784435]
[1739769865676,26.31568652,181.25,181.24,0.03784435]
[1739769866714,27.31568652,181.25,181.24,0.03784435]
[1739769867502,32.83288652,181.25,181.24,0.03784435]
[1739769868411,30.0,181.24,181.13,0.5]
[1739769868591,42.8515596,181.14,181.13,0.5]
[1739769868790,42.8515596,181.15,181.13,0.5]
[1739769869199,46.8965,181.25,181.13,0.5]
[1739769869200,42.8515596,181.14,181.13,0.5]
[1739769870115,13.7964,181.21,181.13,0.5]
[1739769870116,42.8515596,181.15,181.13,0.5]
[1739769870296,42.8515596,181.14,181.13,0.5]
[1739769871110,78.3720596,181.14,181.13,0.5]
[1739769871312,42.8515596,181.14,181.13,0.5]
[1739769871615,42.8515596,181.22,181.13,48.8723596]
[1739769871820,12.6254,181.28,181.13,19.823]
[1739769872003,42.6254,181.28,181.13,19.823]
[1739769872204,42.8515596,181.22,181.15,42.8515596]
[1739769872414,42.8515596,181.2,181.13,48.8723596]
[1739769872614,42.8515596,181.22,181.15,42.8515596]
[1739769872813,42.8515596,181.23,181.16,42.8515596]
[1739769873008,42.8515596,181.24,181.17,42.8515596]
[1739769873213,42.8515596,181.28,181.21,42.8515596]
[1739769873390,42.8515596,181.27,181.2,42.8515596]
[1739769873595,42.8515596,181.23,181.17,5.5196]
[1739769873794,42.8515596,181.22,181.17,5.5196]
[1739769874409,42.8515596,181.2,181.15,5.52]
[1739769874620,42.8515596,181.17,181.15,5.52]
[1739769874826,42.8515596,181.16,181.13,6.0206]
[1739769875023,42.8515596,181.14,181.13,0.5]
[1739769875624,42.8515596,181.14,181.13,0.53]
[1739769876148,42.8515596,181.16,181.13,0.53]
[1739769876301,42.8515596,181.18,181.13,6.0506]
[1739769876742,42.8515596,181.17,181.13,6.0506]
[1739769876946,42.8515596,181.15,181.13,0.53]
[1739769877307,42.8515596,181.16,181.13,0.53]
[1739769878220,42.8515596,181.17,181.13,0.53]
[1739769878419,42.8515596,181.18,181.13,0.53]
[1739769878733,42.8515596,181.17,181.13,0.53]
[1739769878938,42.8515596,181.14,181.13,0.53]
[1739769879839,48.3720596,181.14,181.13,0.53]
[1739769880015,42.8515596,181.14,181.13,0.53]
[1739769880541,48.3720596,181.14,181.13,0.53]
[1739769880732,78.3720596,181.14,181.13,0.53]
[1739769881124,79.3720596,181.14,181.13,0.53]
[1739769881339,79.3720596,181.14,181.08,290.62851119]
[1739769881340,42.8515596,181.09,181.08,290.62851119]
[1739769881719,48.3736596,181.09,181.08,290.62851119]
[1739769882333,91.2252192,181.09,181.08,290.62851119]
[1739769882540,48.3736596,181.09,181.08,290.62851119]
[1739769883241,91.2252192,181.09,181.08,290.62851119]
[1739769883815,108.7252192,181.09,181.08,290.62851119]
[1739769884017,107.7252192,181.09,181.08,290.62851119]
[1739769884218,91.2252192,181.09,181.08,290.62851119]
[1739769884723,48.3736596,181.09,181.08,290.62851119]
[1739769885445,108.7252192,181.09,181.08,290.62851119]
[1739769885945,92.2252192,181.09,181.08,290.62851119]
[1739769886244,91.2252192,181.09,181.08,290.62851119]
[1739769886430,48.3736596,181.09,181.08,290.62851119]
[1739769886834,91.2252192,181.09,181.08,290.62851119]
[1739769887426,48.3736596,181.09,181.08,290.62851119]
[1739769887621,30.0,181.13,181.08,290.62851119]
[1739769887946,42.8515596,181.1,181.08,290.62851119]
[1739769888243,42.8515596,181.1,181.08,290.65851119]
[1739769888725,42.8515596,181.13,181.08,296.18081119]
[1739769888926,42.8515596,181.14,181.08,296.18081119]
[1739769889138,42.8515596,181.12,181.08,296.18081119]
[1739769889329,30.0,181.18,181.08,296.18081119]
[1739769889330,42.8515596,181.13,181.08,296.18081119]
[1739769889544,42.8515596,181.16,181.09,42.8515596]
[1739769889746,42.8515596,181.16,181.1,5.5218]
[1739769889952,42.8515596,181.15,181.1,5.5218]
[1739769890354,16.651072,181.24,181.1,48.3733596]
[1739769890659,42.8515596,181.2,181.13,42.8515596]
[1739769890861,42.8515596,181.21,181.14,42.8515596]
[1739769891360,16.651072,181.24,181.17,42.8515596]
[1739769891361,0.063,181.24,181.17,42.8515596]
[1739769891548,42.9145596,181.24,181.17,42.8515596]
[1739769891855,42.9145596,181.24,181.18,48.3708596]
[1739769892045,0.063,181.24,181.18,48.3708596]
[1739769892449,0.063,181.24,181.19,42.8515596]
[1739769893159,0.063,181.24,181.2,42.8515596]
[1739769893360,0.063,181.24,181.21,42.8515596]
[1739769893662,0.063,181.24,181.22,42.8515596]
[1739769893961,42.8515596,181.31,181.23,53.2996596]
[1739769894127,42.8515596,181.3,181.23,53.2996596]
[1739769894333,42.8515596,181.31,181.25,42.8515596]
[1739769894757,42.8515596,181.3,181.24,42.8515596]
[1739769894959,42.8515596,181.3,181.23,53.2996596]
[1739769895345,42.8515596,181.3,181.24,42.8515596]
[1739769895542,42.8515596,181.25,181.23,4.9303]
[1739769896151,42.8515596,181.26,181.23,4.9303]
[1739769896349,42.8515596,181.25,181.23,4.9303]
[1739769896553,42.8515596,181.24,181.23,4.9303]
[1739769896948,42.8515596,181.24,181.16,17.5493]
[1739769897442,42.8515596,181.25,181.19,42.8515596]
[1739769897770,42.8515596,181.25,181.18,42.8515596]
[1739769897962,42.8515596,181.26,181.19,42.8515596]
[1739769898139,42.8515596,181.27,181.2,42.8515596]
[1739769898669,42.8515596,181.25,181.18,42.8515596]
[1739769899163,42.8515596,181.25,181.19,42.8515596]
[1739769899365,42.8515596,181.25,181.2,5.5187]
[1739769899757,42.8515596,181.26,181.2,5.5187]
[1739769900487,42.8515596,181.31,181.24,42.8515596]
[1739769900802,42.8515596,181.27,181.21,42.8515596]
[1739769900961,42.8515596,181.25,181.2,5.5187]
[1739769901161,42.8515596,181.26,181.2,5.5187]
[1739769901557,42.8515596,181.23,181.17,48.3711596]
[1739769901778,42.8515596,181.22,181.17,5.5196]
[1739769902082,42.8515596,181.19,181.16,17.5493]
[1739769902376,42.8515596,181.19,181.16,4.9303]
[1739769902567,42.8515596,181.26,181.16,10.4502]
[1739769902568,42.8515596,181.2,181.16,10.4502]